fUSD/lending_fUSD_20240619
["ID","MTS","AMOUNT","RATE_DAILY","PERIOD"]
[329858118,1718766649105,-1697.74,0.00013897,2]
[329858119,1718766649119,-3199.04,0.00013897,2]
[329858120,1718766649128,-1674.63,0.00013897,2]
[329858121,1718766649138,-1918.11,0.00013897,2]
[329858122,1718766649147,-2419.77,0.00013897,2]
[329858123,1718766649156,-1870.81,0.00013897,2]
[329858124,1718766649166,-1470.55,0.00013897,2]
[329858125,1718766649175,-500.0,0.00013897,2]
[329858126,1718766649184,-500.0,0.00013897,2]
[329858127,1718766649194,-1712.69,0.00013897,2]
[329858128,1718766649203,-1000.0,0.00013897,2]
[329858129,1718766649213,-2609.75,0.00013897,2]
[329858130,1718766649222,-1116.24,0.00013897,2]
[329858131,1718766649231,-731.24,0.00013897,2]
[329858132,1718766649240,-1855.85,0.00013897,2]
[329858133,1718766649253,-874.75,0.00013897,2]
[329858134,1718766649262,-936.92,0.00013897,2]
[329858135,1718766649272,-1341.81,0.00013897,2]
[329858136,1718766649282,-2339.62,0.00013897,2]
[329858137,1718766649291,-500.0,0.00013897,2]
[329858138,1718766649301,-1361.93,0.00013897,2]
[329858139,1718766649310,-696.22,0.00013897,2]
[329858140,1718766649319,-1642.22,0.00013897,2]
[329858141,1718766649329,-528.13,0.00013897,2]
[329858142,1718766649338,-2040.5,0.00013897,2]
[329858143,1718766649347,-500.0,0.00013897,2]
[329858144,1718766649357,-2666.34,0.00013897,2]
[329858145,1718766649366,-1019.88,0.00013897,2]
[329858146,1718766649375,-500.0,0.00013897,2]
[329858147,1718766649384,-1494.89,0.00013897,2]
[329858148,1718766649394,-2147.37,0.00013897,2]
[329858149,1718766649403,-500.0,0.00013897,2]
[329858150,1718766649412,-500.0,0.00013897,2]
[329858151,1718766649422,-500.0,0.00013897,2]
[329858152,1718766649431,-500.0,0.00013897,2]
[329858153,1718766649441,-1537.66,0.00013897,2]
[329858154,1718766649450,-1983.62,0.00013897,2]
[329858155,1718766649459,-1056.92,0.00013897,2]
[329858156,1718766649469,-1033.67,0.00013897,2]
[329858157,1718766649478,-454.49807583,0.00013897,2]
[329858158,1718766649487,-500.0,0.00013897,2]
[329858159,1718766649496,-500.0,0.00013897,2]
[329858160,1718766649505,-1762.12,0.00013897,2]
[329858161,1718766649514,-2655.51,0.00013897,2]
[329858162,1718766649524,-1038.64,0.00013897,2]
[329858163,1718766649533,-1602.47,0.00013897,2]
[329858164,1718766649541,-1081.21,0.00013897,2]
[329858165,1718766649550,-821.12,0.00013897,2]
[329858166,1718766649560,-6028.21,0.00013897,2]
[329858167,1718766649569,-3142.65,0.00013897,2]
[329858168,1718766649578,-500.0,0.00013897,2]
[329858169,1718766649587,-1524.32,0.00013897,2]
[329858170,1718766649596,-4140.63,0.00013897,2]
[329858171,1718766649605,-159.701603,0.00013897,2]
[329858172,1718766649615,-1562.77,0.00013897,2]
[329858173,1718766649624,-5821.73,0.00013897,2]
[329858174,1718766649634,-500.0,0.00013897,2]
[329858175,1718766649643,-2873.96,0.00013897,2]
[329858176,1718766649652,-30730.63,0.00013897,2]
[329858177,1718766649662,-3222.14,0.00013897,2]
[329858178,1718766649671,-3371.51,0.00013897,2]
[329858179,1718766649681,-10907.38,0.00013897,2]
[329858180,1718766649690,-302.491135,0.00013897,2]
[329858181,1718766649699,-302.491135,0.00013897,2]
[329858182,1718766649708,-1668.85,0.00013897,2]
[329858183,1718766649719,-3716.94,0.00013897,2]
[329858184,1718766649728,-876.77,0.00013897,2]
[329858185,1718766649737,-2094.42,0.00013897,2]
[329858186,1718766649747,-151.0,0.00013897,2]
[329858187,1718766649761,-151.0,0.00013897,2]
[329858188,1718766649770,-500.0,0.00013897,2]
[329858189,1718766649780,-4178.64,0.00013897,2]
[329858190,1718766649790,-1198.33,0.00013897,2]
[329858191,1718766649801,-4083.14,0.00013897,2]
[329858192,1718766649810,-5201.68,0.00013897,2]
[329858193,1718766649819,-835.93,0.00013897,2]
[329858194,1718766649829,-151.0,0.00013897,2]
[329858195,1718766649840,-500.0,0.00013897,2]
[329858196,1718766649850,-151.0,0.00013897,2]
[329858197,1718766649859,-151.0,0.00013897,2]
[329858198,1718766649869,-151.0,0.00013897,2]
[329858199,1718766649878,-1466.57,0.00013897,2]
[329858200,1718766649887,-34027.47,0.00013897,2]
[329858201,1718766649896,-4183.65,0.00013897,2]
[329858202,1718766649906,-151.0,0.00013897,2]
[329858203,1718766649915,-4994.03,0.00013897,2]
[329858204,1718766649924,-1242.77,0.00013897,2]
[329858205,1718766649934,-151.0,0.00013897,2]
[329858206,1718766649943,-1108.27,0.00013897,2]
[329858207,1718766649952,-6198.27,0.00013897,2]
[329858208,1718766649962,-1545.18,0.00013897,2]
[329858209,1718766649971,-1541.03,0.00013897,2]
[329858210,1718766649980,-230.67466,0.00013897,2]
[329858211,1718766649990,-8478.57,0.00013897,2]
[329858212,1718766650001,-4070.53,0.00013897,2]
[329858213,1718766650012,-568.91,0.00013897,2]
[329858214,1718766650021,-19935.23,0.00013897,2]
[329858215,1718766650030,-151.0,0.00013897,2]
[329858216,1718766650040,-1354.75,0.00013897,2]
[329858217,1718766650050,-500.0,0.00013897,2]
[329858218,1718766650060,-151.0,0.00013897,2]
[329858219,1718766650069,-680.02,0.00013897,2]
[329858220,1718766650080,-4123.84,0.00013897,2]
[329858221,1718766650089,-926.224186,0.00013897,2]
[329858222,1718766650099,-500.0,0.00013897,2]
[329858223,1718766650108,-926.224186,0.00013897,2]
[329858224,1718766650117,-1130.96,0.00013897,2]
[329858225,1718766650127,-2428.04,0.00013897,2]
[329858226,1718766650137,-1662.89,0.00013897,2]
[329858227,1718766650147,-631.42,0.00013897,2]
[329858228,1718766650156,-943.45,0.00013897,2]
[329858229,1718766650166,-1250.92,0.00013897,2]
[329858230,1718766650175,-3850.71,0.00013897,2]
[329858231,1718766650185,-2185.88,0.00013897,2]
[329858232,1718766650196,-7142.72,0.00013897,2]
[329858233,1718766650206,-1758.19,0.00013897,2]
[329858234,1718766650216,-913.67,0.00013897,2]
[329858235,1718766650225,-151.0,0.00013897,2]
[329858236,1718766650234,-3363.1,0.00013897,2]
[329858237,1718766650245,-151.0,0.00013897,2]
[329858238,1718766650256,-1518.55,0.00013897,2]
[329858239,1718766650265,-500.0,0.00013897,2]
[329858240,1718766650275,-151.0,0.00013897,2]
[329858241,1718766650285,-151.0,0.00013897,2]
[329858242,1718766650295,-151.0,0.00013897,2]
[329858243,1718766650307,-1300.51,0.00013897,2]
[329858244,1718766650317,-1598.73,0.00013897,2]
[329858245,1718766650328,-1405.22,0.00013897,2]
[329858246,1718766650339,-151.0,0.00013897,2]
[329858247,1718766650348,-1650.9,0.00013897,2]
[329858248,1718766650359,-3645.2,0.00013897,2]
[329858249,1718766650370,-151.0,0.00013897,2]
[329858250,1718766650380,-152.337916,0.00013897,2]
[329858251,1718766650390,-1378.44,0.00013897,2]
[329858252,1718766650400,-2986.56,0.00013897,2]
[329858253,1718766650410,-3230.99,0.00013897,2]
[329858254,1718766650420,-1335.33,0.00013897,2]
[329858255,1718766650431,-3512.11,0.00013897,2]
[329858256,1718766650442,-151.0,0.00013897,2]
[329858257,1718766650453,-1894.34,0.00013897,2]
[329858258,1718766650466,-500.0,0.00013898,2]
[329858259,1718766650477,-500.0,0.00013898,2]
[329858260,1718766650487,-500.0,0.00013898,2]
[329858261,1718766650496,-986.78,0.00013898,2]
[329858262,1718766650506,-555.89686889,0.00013898,2]
[329858263,1718766650515,-500.0,0.00013898,2]
[329858264,1718766650526,-975.25,0.00013898,2]
[329858265,1718766650535,-500.0,0.00013898,2]
[329858266,1718766650545,-500.0,0.00013898,2]
[329858267,1718766650555,-500.0,0.00013898,2]
[329858268,1718766650725,-500.0,0.00013898,2]
[329858269,1718766650738,-388.41269347,0.00013898,2]
[329858270,1718766650748,-500.0,0.00013898,2]
[329858271,1718766650758,-500.0,0.00013898,2]
[329858272,1718766650769,-500.0,0.00013898,2]
[329858273,1718766650780,-500.0,0.00013898,2]
[329858274,1718766650791,-500.0,0.00013898,2]
[329858275,1718766650802,-500.0,0.00013898,2]
[329858276,1718766650814,-504.22,0.00013898,2]
[329858277,1718766650825,-677.87,0.00013898,2]
[329858278,1718766650834,-742.99,0.00013898,2]
[329858279,1718766650847,-500.0,0.00013898,2]
[329858280,1718766650856,-860.43,0.00013898,2]
[329858281,1718766650868,-500.0,0.00013898,2]
[329858282,1718766650878,-500.0,0.00013898,2]
[329858283,1718766650889,-500.0,0.00013898,2]
[329858284,1718766650900,-500.0,0.00013898,2]
[329858285,1718766650911,-500.0,0.00013898,2]
[329858286,1718766650920,-500.0,0.00013898,2]
[329858287,1718766650929,-763.91,0.00013898,2]
[329858288,1718766650938,-500.0,0.00013898,2]
[329858289,1718766650947,-500.0,0.00013898,2]
[329858290,1718766650957,-911.05,0.00013898,2]
[329858291,1718766650967,-500.0,0.00013898,2]
[329858292,1718766650976,-500.0,0.00013898,2]
[329858293,1718766650986,-500.0,0.00013898,2]
[329858294,1718766650995,-500.0,0.00013898,2]
[329858295,1718766651006,-1020.57,0.00013898,2]
[329858296,1718766651015,-500.0,0.00013898,2]
[329858297,1718766651024,-500.0,0.00013898,2]
[329858298,1718766651033,-500.0,0.00013898,2]
[329858299,1718766651042,-500.0,0.00013898,2]
[329858300,1718766651051,-500.0,0.00013898,2]
[329858301,1718766651060,-500.0,0.00013898,2]
[329858302,1718766651070,-500.0,0.00013898,2]
[329858303,1718766651079,-500.0,0.00013898,2]
[329858304,1718766651088,-500.0,0.00013898,2]
[329858305,1718766651098,-500.0,0.00013898,2]
[329858306,1718766651107,-500.0,0.00013898,2]
[329858307,1718766651117,-1045.76,0.00013898,2]
[329858308,1718766651126,-1141.51,0.00013898,2]
[329858309,1718766651135,-500.0,0.00013898,2]
[329858310,1718766651145,-726.42,0.00013898,2]
[329858311,1718766651154,-500.0,0.00013898,2]
[329858312,1718766651163,-500.0,0.00013898,2]
[329858313,1718766651172,-749.39,0.00013898,2]
[329858314,1718766651181,-254.64445913,0.00013898,2]
[329858315,1718766651191,-931.05,0.00013898,2]
[329858316,1718766651200,-500.0,0.00013898,2]
[329858317,1718766651210,-892.21,0.00013898,2]
[329858318,1718766651220,-500.0,0.00013898,2]
[329858319,1718766651229,-500.0,0.00013898,2]
[329858320,1718766651239,-500.0,0.00013898,2]
[329858321,1718766651248,-500.0,0.00013898,2]
[329858322,1718766651257,-500.0,0.00013898,2]
[329858323,1718766651267,-500.0,0.00013898,2]
[329858324,1718766651276,-654.05,0.00013898,2]
[329858325,1718766651286,-500.0,0.00013898,2]
[329858326,1718766651295,-500.0,0.00013898,2]
[329858327,1718766651305,-500.0,0.00013898,2]
[329858328,1718766651314,-500.0,0.00013898,2]
[329858329,1718766651323,-500.0,0.00013898,2]
[329858330,1718766651334,-500.0,0.00013898,2]
[329858331,1718766651343,-500.0,0.00013898,2]
[329858332,1718766651352,-843.38,0.00013898,2]
[329858333,1718766651362,-500.0,0.00013898,2]
[329858334,1718766651372,-513.03,0.00013898,2]
[329858335,1718766651383,-500.0,0.00013898,2]
[329858336,1718766651392,-500.0,0.00013898,2]
[329858337,1718766651402,-1223.08,0.00013898,2]
[329858338,1718766651411,-562.49499472,0.00013898,2]
[329858339,1718766651420,-500.0,0.00013898,2]
[329858340,1718766651430,-500.0,0.00013898,2]
[329858341,1718766651440,-503.60755583,0.00013898,2]
[329858342,1718766651449,-502.52551693,0.00013898,2]
[329858343,1718766651459,-500.0,0.00013898,2]
[329858344,1718766651469,-500.0,0.00013898,2]
[329858345,1718766651479,-500.0,0.00013898,2]
[329858346,1718766651488,-500.0,0.00013898,2]
[329858347,1718766651498,-500.0,0.00013898,2]
[329858348,1718766651508,-500.0,0.00013898,2]
[329858349,1718766651517,-500.0,0.00013898,2]
[329858350,1718766651526,-1318.09,0.00013898,2]
[329858351,1718766651536,-500.0,0.00013898,2]
[329858352,1718766651546,-500.0,0.00013898,2]
[329858353,1718766651555,-697.26,0.00013898,2]
[329858354,1718766651565,-500.0,0.00013898,2]
[329858355,1718766651574,-500.0,0.00013898,2]
[329858356,1718766651584,-500.0,0.00013898,2]
[329858357,1718766651593,-753.1,0.00013898,2]
[329858358,1718766651602,-500.0,0.00013898,2]
[329858359,1718766651612,-500.0,0.00013898,2]
[329858360,1718766651621,-500.0,0.00013898,2]
[329858361,1718766651631,-1538.98,0.00013898,2]
[329858362,1718766651640,-500.0,0.00013898,2]
[329858363,1718766651649,-500.0,0.00013898,2]
[329858364,1718766651658,-530.86,0.00013898,2]
[329858365,1718766651667,-500.0,0.00013898,2]
[329858366,1718766651677,-500.0,0.00013898,2]
[329858367,1718766651686,-1406.08,0.00013898,2]
[329858368,1718766651695,-709.47,0.00013898,2]
[329858369,1718766651704,-1015.28,0.00013898,2]
[329858370,1718766651713,-654.88,0.00013898,2]
[329858371,1718766651723,-500.0,0.00013898,2]
[329858372,1718766651732,-500.0,0.00013898,2]
[329858373,1718766651742,-500.0,0.00013898,2]
[329858374,1718766651751,-507.23,0.00013898,2]
[329858375,1718766651764,-833.04,0.00013898,2]
[329858376,1718766651773,-500.0,0.00013898,2]
[329858377,1718766651782,-500.0,0.00013898,2]
[329858378,1718766651791,-500.0,0.00013898,2]
[329858379,1718766651802,-500.0,0.00013898,2]
[329858380,1718766651811,-500.0,0.00013898,2]
[329858381,1718766651820,-500.0,0.00013898,2]
[329858382,1718766651831,-632.38,0.00013898,2]
[329858383,1718766651841,-500.0,0.00013898,2]
[329858384,1718766651851,-513.28014047,0.00013898,2]
[329858385,1718766651861,-500.0,0.00013898,2]
[329858386,1718766651871,-500.0,0.00013898,2]
[329858387,1718766651880,-500.0,0.00013898,2]
[329858388,1718766651890,-500.0,0.00013898,2]
[329858389,1718766651901,-500.0,0.00013898,2]
[329858390,1718766651911,-550.00613616,0.00013898,2]
[329858391,1718766651922,-500.0,0.00013898,2]
[329858392,1718766651932,-500.0,0.00013898,2]
[329858393,1718766651941,-500.91100906,0.00013898,2]
[329858394,1718766651951,-1156.61,0.00013898,2]
[329858395,1718766651961,-500.0,0.00013898,2]
[329858396,1718766651972,-510.48945471,0.00013898,2]
[329858397,1718766651983,-500.0,0.00013898,2]
[329858398,1718766651992,-500.0,0.00013898,2]
[329858399,1718766652002,-619.36,0.00013898,2]
[329858400,1718766652012,-500.0,0.00013898,2]
[329858401,1718766652021,-1068.05,0.00013898,2]
[329858402,1718766652031,-500.0,0.00013898,2]
[329858403,1718766652040,-500.0,0.00013898,2]
[329858404,1718766652050,-500.0,0.00013898,2]
[329858405,1718766652059,-500.0,0.00013898,2]
[329858406,1718766652068,-500.77194336,0.00013898,2]
[329858407,1718766652077,-500.0,0.00013898,2]
[329858408,1718766652087,-500.0,0.00013898,2]
[329858409,1718766652096,-500.0,0.00013898,2]
[329858410,1718766652106,-500.0,0.00013898,2]
[329858411,1718766652115,-500.0,0.00013898,2]
[329858412,1718766652125,-500.0,0.00013898,2]
[329858413,1718766652135,-471.42733248,0.00013898,2]
[329858414,1718766652145,-500.0,0.00013898,2]
[329858415,1718766652154,-500.0,0.00013898,2]
[329858416,1718766652164,-696.89,0.00013898,2]
[329858417,1718766652173,-500.0,0.00013898,2]
[329858418,1718766652183,-500.0,0.00013898,2]
[329858419,1718766652193,-500.0,0.00013898,2]
[329858420,1718766652202,-500.0,0.00013898,2]
[329858421,1718766652212,-500.0,0.00013898,2]
[329858422,1718766652222,-206.7095057,0.00013898,2]
[329858423,1718766652231,-638.82,0.00013898,2]
[329858424,1718766652241,-1221.04,0.00013898,2]
[329858425,1718766652251,-500.0,0.00013898,2]
[329858426,1718766652260,-500.0,0.00013898,2]
[329858427,1718766652269,-500.0,0.00013898,2]
[329858428,1718766652280,-500.0,0.00013898,2]
[329858429,1718766652290,-500.0,0.00013898,2]
[329858430,1718766652300,-500.0,0.00013898,2]
[329858431,1718766652311,-2419.77,0.00013898,2]
[329858432,1718766652322,-500.0,0.00013898,2]
[329858433,1718766652331,-813.37,0.00013898,2]
[329858434,1718766652342,-696.61,0.00013898,2]
[329858435,1718766652351,-500.0,0.00013898,2]
[329858436,1718766652361,-509.80369126,0.00013898,2]
[329858437,1718766652371,-500.0,0.00013898,2]
[329858438,1718766652382,-500.0,0.00013898,2]
[329858439,1718766652392,-1052.28,0.00013898,2]
[329858440,1718766652402,-500.0,0.00013898,2]
[329858441,1718766652412,-500.0,0.00013898,2]
[329858442,1718766652422,-500.0,0.00013898,2]
[329858443,1718766652433,-500.0,0.00013898,2]
[329858444,1718766652443,-500.0,0.00013898,2]
[329858445,1718766652452,-911.64,0.00013898,2]
[329858446,1718766652462,-151.0,0.00013898,2]
[329858447,1718766652472,-151.0,0.00013898,2]
[329858448,1718766652481,-500.0,0.00013898,2]
[329858449,1718766652491,-500.0,0.00013898,2]
[329858450,1718766652501,-500.0,0.00013898,2]
[329858451,1718766652512,-500.0,0.00013898,2]
[329858452,1718766652523,-500.0,0.00013898,2]
[329858453,1718766652533,-500.0,0.00013898,2]
[329858454,1718766652542,-500.0,0.00013898,2]
[329858455,1718766652552,-919.03,0.00013898,2]
[329858456,1718766652561,-500.0,0.00013898,2]
[329858457,1718766652571,-500.0,0.00013898,2]
[329858458,1718766652580,-500.0,0.00013898,2]
[329858459,1718766652589,-500.0,0.00013898,2]
[329858460,1718766652599,-500.0,0.00013898,2]
[329858461,1718766652608,-1467.04,0.00013898,2]
[329858462,1718766652616,-500.0,0.00013898,2]
[329858463,1718766652626,-500.0,0.00013898,2]
[329858464,1718766652635,-1226.42,0.00013898,2]
[329858465,1718766652644,-500.0,0.00013898,2]
[329858466,1718766652654,-500.0,0.00013898,2]
[329858467,1718766652664,-500.0,0.00013898,2]
[329858468,1718766652675,-720.75,0.00013898,2]
[329858469,1718766652686,-500.0,0.00013898,2]
[329858470,1718766652697,-500.0,0.00013898,2]
[329858471,1718766652707,-500.0,0.00013898,2]
[329858472,1718766652717,-653.67,0.00013898,2]
[329858473,1718766652727,-500.0,0.00013898,2]
[329858474,1718766652736,-694.22,0.00013898,2]
[329858475,1718766652747,-500.0,0.00013898,2]
[329858476,1718766652758,-500.0,0.00013898,2]
[329858477,1718766652771,-500.0,0.00013898,2]
[329858478,1718766652781,-2000.0,0.00013898,2]
[329858479,1718766652794,-500.0,0.00013898,2]
[329858480,1718766652805,-500.4946407,0.00013898,2]
[329858481,1718766652815,-500.0,0.00013898,2]
[329858482,1718766652825,-500.0,0.00013898,2]
[329858483,1718766652838,-500.0,0.00013898,2]
[329858484,1718766652848,-1070.84,0.00013898,5]
[329858485,1718766652858,-500.0,0.00013898,2]
[329858486,1718766652867,-657.86,0.00013898,2]
[329858487,1718766652877,-500.0,0.00013898,2]
[329858488,1718766652888,-500.0,0.00013898,2]
[329858489,1718766652901,-500.0,0.00013898,2]
[329858490,1718766652910,-500.0,0.00013898,2]
[329858491,1718766652922,-500.0,0.00013898,2]
[329858492,1718766652935,-250.0,0.00013898,2]
[329858493,1718766652945,-500.0,0.00013898,2]
[329858494,1718766652955,-548.48435388,0.00013898,2]
[329858495,1718766652964,-500.0,0.00013898,2]
[329858496,1718766652976,-500.0,0.00013898,2]
[329858497,1718766652985,-500.0,0.00013898,2]
[329858498,1718766652995,-500.0,0.00013898,2]
[329858499,1718766653004,-500.0,0.00013898,2]
[329858500,1718766653013,-500.0,0.00013898,2]
[329858501,1718766653022,-1184.42,0.00013898,2]
[329858502,1718766653031,-500.0,0.00013898,2]
[329858503,1718766653041,-500.0,0.00013898,2]
[329858504,1718766653050,-151.0,0.00013898,2]
[329858505,1718766653059,-563.46,0.00013898,2]
[329858506,1718766653068,-533.54268976,0.00013898,2]
[329858507,1718766653077,-151.0,0.00013898,2]
[329858508,1718766653086,-500.0,0.00013898,2]
[329858509,1718766653095,-500.0,0.00013898,2]
[329858510,1718766653104,-500.0,0.00013898,2]
[329858511,1718766653114,-500.0,0.00013898,2]
[329858512,1718766653123,-500.0,0.00013898,2]
[329858513,1718766653132,-718.35,0.00013898,2]
[329858514,1718766653142,-500.0,0.00013898,2]
[329858515,1718766653151,-590.63,0.00013898,2]
[329858516,1718766653160,-500.0,0.00013898,2]
[329858517,1718766653169,-151.0,0.00013898,2]
[329858518,1718766653178,-500.0,0.00013898,2]
[329858519,1718766653187,-980.88,0.00013898,2]
[329858520,1718766653196,-500.0,0.00013898,2]
[329858521,1718766653205,-500.0,0.00013898,2]
[329858522,1718766653214,-500.0,0.00013898,2]
[329858523,1718766653224,-551.65,0.00013898,2]
[329858524,1718766653234,-500.0,0.00013898,2]
[329858525,1718766653243,-623.21,0.00013898,2]
[329858526,1718766653253,-500.0,0.00013898,2]
[329858527,1718766653262,-500.0,0.00013898,2]
[329858528,1718766653271,-500.0,0.00013898,2]
[329858529,1718766653441,-941.43,0.00013898,2]
[329858530,1718766653451,-500.0,0.00013898,2]
[329858531,1718766653461,-500.0,0.00013898,2]
[329858532,1718766653471,-500.0,0.00013898,2]
[329858533,1718766653480,-500.0,0.00013898,2]
[329858534,1718766653489,-937.36,0.00013898,2]
[329858535,1718766653498,-500.0,0.00013898,2]
[329858536,1718766653508,-500.0,0.00013898,2]
[329858537,1718766653517,-500.0,0.00013898,2]
[329858538,1718766653527,-500.0,0.00013898,2]
[329858539,1718766653536,-164.461179,0.00013898,2]
[329858540,1718766653546,-500.0,0.00013898,2]
[329858541,1718766653556,-500.0,0.00013898,2]
[329858542,1718766653565,-500.0,0.00013898,2]
[329858543,1718766653575,-256.397815,0.00013898,2]
[329858544,1718766653584,-500.0,0.00013898,2]
[329858545,1718766653593,-500.0,0.00013898,2]
[329858546,1718766653603,-151.0,0.00013898,2]
[329858547,1718766653613,-839.25,0.00013898,2]
[329858548,1718766653622,-500.0,0.00013898,2]
[329858549,1718766653632,-500.0,0.00013898,2]
[329858550,1718766653641,-583.23,0.00013898,2]
[329858551,1718766653651,-154.085624,0.00013898,2]
[329858552,1718766653660,-500.0,0.00013898,2]
[329858553,1718766653670,-500.0,0.00013898,2]
[329858554,1718766653679,-500.0,0.00013898,2]
[329858555,1718766653688,-500.0,0.00013898,2]
[329858556,1718766653698,-788.42,0.00013898,2]
[329858557,1718766653707,-500.0,0.00013898,2]
[329858558,1718766653717,-500.0,0.00013898,2]
[329858559,1718766653727,-579.2,0.00013898,2]
[329858560,1718766653737,-821.12,0.00013898,2]
[329858561,1718766653747,-500.0,0.00013898,2]
[329858562,1718766653759,-500.0,0.00013898,2]
[329858563,1718766653770,-500.0,0.00013898,2]
[329858564,1718766653779,-500.0,0.00013898,2]
[329858565,1718766653788,-500.0,0.00013898,2]
[329858566,1718766653799,-200.89007,0.00013898,2]
[329858567,1718766653808,-500.0,0.00013898,2]
[329858568,1718766653818,-500.0,0.00013898,2]
[329858569,1718766653827,-500.0,0.00013898,2]
[329858570,1718766653838,-200.89007,0.00013898,2]
[329858571,1718766653848,-500.0,0.00013898,2]
[329858572,1718766653857,-500.0,0.00013898,2]
[329858573,1718766653867,-268.33579548,0.00013898,2]
[329858574,1718766653876,-500.0,0.00013898,2]
[329858575,1718766653887,-500.0,0.00013898,2]
[329858576,1718766653896,-500.0,0.00013898,2]
[329858577,1718766653906,-500.0,0.00013898,2]
[329858578,1718766653915,-500.0,0.00013898,2]
[329858579,1718766653925,-500.0,0.00013898,2]
[329858580,1718766653934,-500.0,0.00013898,2]
[329858581,1718766653944,-302.491135,0.00013898,2]
[329858582,1718766653953,-302.491135,0.00013898,2]
[329858583,1718766653963,-503.86662531,0.00013898,2]
[329858584,1718766653975,-500.0,0.00013898,2]
[329858585,1718766653985,-500.0,0.00013898,2]
[329858586,1718766653994,-500.0,0.00013898,2]
[329858587,1718766654004,-500.0,0.00013898,2]
[329858588,1718766654014,-500.0,0.00013898,2]
[329858589,1718766654024,-609.86,0.00013898,2]
[329858590,1718766654034,-151.0,0.00013898,2]
[329858591,1718766654044,-502.20541962,0.00013898,2]
[329858592,1718766654054,-500.0,0.00013898,2]
[329858593,1718766654063,-245.233256,0.00013898,2]
[329858594,1718766654072,-500.0,0.00013898,2]
[329858595,1718766654082,-500.0,0.00013898,2]
[329858596,1718766654092,-500.0,0.00013898,2]
[329858597,1718766654102,-500.0,0.00013898,2]
[329858598,1718766654112,-646.53,0.00013898,2]
[329858599,1718766654122,-151.0,0.00013898,2]
[329858600,1718766654132,-151.0,0.00013898,2]
[329858601,1718766654142,-500.0,0.00013898,2]
[329858602,1718766654151,-151.0,0.00013898,2]
[329858603,1718766654161,-253.335161,0.00013898,2]
[329858604,1718766654170,-500.0,0.00013898,2]
[329858605,1718766654181,-500.0,0.00013898,2]
[329858606,1718766654191,-151.0,0.00013898,2]
[329858607,1718766654200,-500.0,0.00013898,2]
[329858608,1718766654211,-300.662812,0.00013898,2]
[329858609,1718766654222,-641.88,0.00013898,2]
[329858610,1718766654231,-500.0,0.00013898,2]
[329858611,1718766654241,-500.0,0.00013898,2]
[329858612,1718766654250,-500.0,0.00013898,2]
[329858613,1718766654261,-500.0,0.00013898,2]
[329858614,1718766654270,-639.9,0.00013898,2]
[329858615,1718766654280,-538.49,0.00013898,2]
[329858616,1718766654288,-151.0,0.00013898,2]
[329858617,1718766654298,-500.0,0.00013898,2]